Cogmind - Beta 11 @@@ ROGUE MODE // 2022.03.19 @ 16:04:26 Player: OccultOnion Result: Destroyed by G-67 Veteran with Plasma Rifle Performance ------------- Evolutions (7) 3500 Regions Visited (10) 2000 Robots Destroyed (80) 400 Value Destroyed (3785) 3785 Prototype IDs (1) 20 Alien Tech Used (0) 0 Bonus (218) 218 TOTAL SCORE: 9923 Bonus ------- Follower Combat Kills 245 Friendly Fire -27 Cogmind --------- Core Integrity 0/1300 Matter 108/300 Energy 49/100 System Corruption 41% Temperature Cool (12) Movement Core (150) Ox2 Location -3/Research Parts ------- > --- POWER (2) -------- (None) > --- PROPULSION (7) --- (None) > --- UTILITY (9) ------ Signal Interpreter Hacking Suite > --- WEAPON (3) ------- Enhanced Force Lance > --- INVENTORY (5) ---- Light Deuterium Engine Light Antimatter Reactor Improved Terrain Scan Processor Improved Corruption Screen Peak State ------------ > --- POWER ------------ Particle Reactor Micro Antimatter Reactor > --- PROPULSION ------- Carbon-fiber Leg Carbon-fiber Leg Myomer Leg Linear Gravjet Improved Antigrav System > --- UTILITY ---------- Advanced Power Amplifier Cryofiber Web Large Storage Unit Machine Analyzer Signal Interpreter Terrain Scanner Improved Remote Force Field Hacking Suite Advanced Trap Extractor > --- WEAPON ----------- Tesla Rifle Magnetic Acceleration Cannon Shock Maul > --- INVENTORY -------- Light Deuterium Engine Medium Treads Large Storage Unit Improved Signal Interpreter Improved Terrain Scan Processor Advanced Target Analyzer Improved Transmission Jammer Improved Corruption Screen Quantum Rifle Assault Cannon Linear Accelerator Precision Rocket Launcher Enhanced Force Lance [Rating: 98] Favorites ----------- Power Reinforced Ion Engine Engine Reinforced Ion Engine Power Core Micro Nuclear Core Reactor Micro Antimatter Reactor Propulsion Carbon-fiber Leg Treads Light Treads Leg Carbon-fiber Leg Wheel Wheel Hover Unit Improved Antigrav System Flight Unit Xenon Bombardment Thruster Utility Signal Interpreter Device Cryofiber Web Storage Large Storage Unit Processor Signal Interpreter Hackware Hacking Suite Protection Power Shielding Weapon Katana Energy Gun Gatling Laser Energy Cannon Heavy Particle Cannon Ballistic Gun Flak Gun Ballistic Cannon Slug Cannon Impact Weapon Shock Maul Slashing Weapon Katana Piercing Weapon Enhanced Force Lance Build | -11 -10 -9 -8 -7 -7 -7 -6 -5 -4 -3 ------- Run | Scr Mat Mat Mat Fac Was Fac Fac Fac Fac Res Slots Evolved 14 | . . 2 2 2 . . 2 2 2 2 Power 1 | . . . . . . . . 1 . . Propulsion 5 | . . 1 1 1 . . 1 . . 1 Utility 7 | . . 1 1 1 . . 1 . 2 1 Weapon 1 | . . . . . . . . 1 . . Parts Attached 108 | . . 5 22 15 1 2 21 10 1 31 Power 13 | . . . 3 1 . 1 1 3 . 4 Engine 7 | . . . 3 1 . 1 . 1 . 1 Core 2 | . . . . . . . . 2 . . Reactor 4 | . . . . . . . 1 . . 3 Propulsion 45 | . . 1 10 8 . . 8 4 1 13 Treads 3 | . . . . 1 . . . . . 2 Leg 32 | . . 1 9 7 . . 6 4 1 4 Wheel 5 | . . . 1 . . . 2 . . 2 Hover 3 | . . . . . . . . . . 3 Flight 2 | . . . . . . . . . . 2 Utility 21 | . . 2 4 2 1 . 5 1 . 6 Device 9 | . . . 2 . . . 3 . . 4 Storage 1 | . . . . 1 . . . . . . Processor 3 | . . 1 1 . . . . 1 . . Hackware 3 | . . . 1 . . . . . . 2 Protection 5 | . . 1 . 1 1 . 2 . . . Artifact . | . . . . . . . . . . . Weapon 29 | . . 2 5 4 . 1 7 2 . 8 Energy Gun 5 | . . . 1 1 . . . . . 3 Energy Cannon 3 | . . 1 1 1 . . . . . . Ballistic Gun 5 | . . . 1 1 . 1 1 . . 1 Ballistic Cannon 7 | . . . . . . . 3 1 . 3 Launcher . | . . . . . . . . . . . Special Weapon . | . . . . . . . . . . . Impact Weapon 1 | . . . . . . . . 1 . . Slashing Weapon 7 | . . 1 2 1 . . 3 . . . Piercing Weapon 1 | . . . . . . . . . . 1 Special Melee Weapon . | . . . . . . . . . . . Unidentified Prototypes 1 | . . . . . . . . 1 . . Corrupted Parts 3 | . . . 1 . . . . 1 . 1 System Corruption 29 | . . . 6 . . . . 14 . 9 Parts Lost 82 | . . 1 8 7 . 2 13 8 . 43 Power 11 | . . . 2 1 . . 1 2 . 5 Propulsion 35 | . . . 2 3 . . 8 4 . 18 Utility 20 | . . . 3 2 . 1 3 1 . 10 Weapon 16 | . . 1 1 1 . 1 1 1 . 10 Highest Loss Streak 21 | . . 1 4 2 . 1 8 3 . 21 To Critical Strikes . | . . . . . . . . . . . Average Slot Usage (%) 89 | . 85 90 96 95 95 99 94 88 78 69 Engine 5 | . 14 11 8 6 7 7 4 1 5 2 Reactor 1 | . . . . . . . 1 3 . 3 Leg 26 | . 28 33 29 32 38 38 32 16 15 10 Wheel 2 | . . . 5 . . . 2 9 5 4 Device 7 | . . . 7 3 . . 9 17 15 13 Storage 6 | . 14 11 7 7 7 7 6 5 5 3 Processor 10 | . . 11 9 15 15 15 11 6 10 6 Hackware 2 | . . . 4 6 . . . . . 4 Protection 4 | . . 1 3 3 10 15 11 3 . . Energy Gun 2 | . 14 8 1 6 . . . . . 2 Energy Cannon 1 | . . 2 7 . 7 4 . . . . Ballistic Gun 1 | . 14 1 2 . . 1 1 . . 1 Ballistic Cannon 2 | . . . . . . . 6 11 10 3 Slashing Weapon 4 | . . 9 6 6 7 7 3 4 . . Naked Turns . | . . . . . . . . . . . Heaviest Build 86 | 13 13 21 23 39 42 42 54 63 56 86 Greatest Support 105 | 20 20 30 72 85 85 85 105 58 75 90 Greatest Overweight (x) 25 | . . . 2 . . . 2 1 1 25 Average Overweight (x) . | . . . . . . . . . . 1 Largest Inventory Capacity 15 | 8 8 8 8 15 15 15 15 15 15 15 Average Capacity 13 | 8 8 8 7 14 15 15 15 15 15 14 Most Carried 15 | 8 8 8 8 15 15 15 15 15 13 14 Average Carried 12 | 6 7 7 7 13 14 14 12 14 13 11 Final Capacity 15 | 8 8 8 5 15 15 15 15 15 15 5 Final Carried 15 | 8 8 8 5 13 15 14 13 13 13 4 Class Distribution -------------------- 67% | Scavenger-Mutant 32% | Mutant Dominant Class ---------------- Mutant | -10/Materials Mutant | -9/Materials Mutant | -8/Materials Scavenger-Mutant | -7/Factory Scavenger-Mutant | -7/Waste Scavenger-Mutant | -7/Factory Mutant | -6/Factory Scavenger-Mutant | -5/Factory Scavenger-Mutant | -4/Factory Scavenger-Mutant | -3/Research Resources | -11 -10 -9 -8 -7 -7 -7 -6 -5 -4 -3 ----------- Run | Scr Mat Mat Mat Fac Was Fac Fac Fac Fac Res Matter Collected 2264 | 207 14 45 204 280 36 75 533 324 . 546 Remotely . | . . . . . . . . . . . Salvage Created 3367 | 80 146 119 607 536 . 311 417 337 . 814 Parts 169 | 4 10 11 34 27 . 17 19 12 . 35 Haulers Intercepted 1 | . . . . . . . 1 . . . Recyclers Shooed . | . . . . . . . . . . . Parts Field Recycled . | . . . . . . . . . . . Retrieved Matter . | . . . . . . . . . . . Parts Self-Destructed . | . . . . . . . . . . . Prevented . | . . . . . . . . . . . Kills | -11 -10 -9 -8 -7 -7 -7 -6 -5 -4 -3 ------- Run | Scr Mat Mat Mat Fac Was Fac Fac Fac Fac Res Combat Hostiles Destroyed 69 | . 3 2 13 11 . 9 7 8 . 16 Melee 6 | . . . . 2 . 2 . 1 . 1 Guns 23 | . 2 . 5 6 . 4 1 . . 5 Cannons 32 | . . 2 6 2 . 3 6 6 . 7 AOE 2 | . 1 . . . . . . . . 1 Classes Destroyed 15 | 2 2 1 3 1 . 1 5 . . . Worker 1 | . . . . . . . 1 . . . Builder 3 | . . . . . . . 1 . . 2 Tunneler 1 | 1 . . . . . . . . . . Hauler 1 | . . . . . . . 1 . . . Recycler 1 | 1 . . . . . . . . . . Mechanic 1 | . . . . . . . 1 . . . Operator 1 | . . . 1 . . . . . . . Watcher 2 | . 1 . 1 . . . . . . . Swarmer 11 | . . . 4 . . 4 . . . 3 Grunt 26 | . 3 . 5 5 . 3 . 4 . 6 Brawler 1 | . . . . . . 1 . . . . Duelist 2 | . . . 1 1 . . . . . . Sentry 14 | . . 2 3 3 . . 4 . . 2 Hunter 6 | . . . . . . . 2 4 . . Programmer 9 | . . . . 2 . 1 1 . . 5 Best Kill Streak 8 | 2 2 1 5 4 . 8 3 2 . 3 Combat Bots Only 8 | . 2 1 4 4 . 8 2 2 . 3 Max Kills in Single Turn 1 | 1 1 1 1 1 . 1 1 1 . 1 Gunslinging . | . . . . . . . . . . . Exploded 1 | . 1 . . . . . . . . 1 Melee 1 | . . . . 1 . 1 . 1 . 1 Uniques/NPCs Destroyed . | . . . . . . . . . . . Combat | -11 -10 -9 -8 -7 -7 -7 -6 -5 -4 -3 -------- Run | Scr Mat Mat Mat Fac Was Fac Fac Fac Fac Res Damage Taken 11848 | . 114 137 1479 881 22 835 1825 849 . 5706 Core 2184 | . 12 . 248 127 . 112 288 96 . 1301 Absorbed by Shields 485 | . . . . . . . . . . 485 Redirected to Shielding 156 | . . . . . . 20 118 18 . . Regen/Repaired (Parts) 28 | . . . 28 . . . . . . . Core Remaining (%) 83 | 100 95 100 54 . . 65 66 90 100 . Volleys Fired 304 | 7 14 4 51 45 . 30 35 28 . 90 Largest 2 | 2 2 1 2 2 . 1 2 2 . 2 Hottest 118 | 60 60 63 91 80 . 75 96 96 . 118 Shots Fired 461 | 14 28 4 73 50 1 31 65 56 . 139 Gun 216 | 14 28 . 44 42 . 13 7 . . 68 Cannon 245 | . . 4 29 8 1 18 58 56 . 71 Launcher . | . . . . . . . . . . . Special . | . . . . . . . . . . . Kinetic 279 | 7 14 . 35 4 . 13 65 56 . 85 Thermal 85 | . . . 9 46 1 18 . . . 11 Explosive . | . . . . . . . . . . . Electromagnetic 97 | 7 14 4 29 . . . . . . 43 Robot Hit Streak 29 | 3 8 12 29 18 . 4 6 6 . 14 Robot Miss Streak 7 | 2 7 . 4 4 1 4 6 6 . 4 Penetration Max 1 | . . . 1 . . . 1 1 . . Secondary Targets . | . . . . . . . . . . . Shots Hit Robots 322 | 8 12 4 52 48 . 29 37 29 . 103 Core Hits 161 | 3 7 2 21 32 . 26 22 12 . 36 Critical Kills 4 | . . . . . . . 2 2 . . Critical Parts Destroyed 6 | . . . 1 . . . . 4 . 1 Critical Strikes 21 | . 1 . 3 . . 1 2 7 . 7 Burn 1 | . . . 1 . . . . . . . Destroy 10 | . . . 1 . . . 2 5 . 2 Blast 3 | . . . . . . . . . . 3 Corrupt 3 | . 1 . 1 . . . . . . 1 Smash 1 | . . . . . . . . 1 . . Sever 2 | . . . . . . 1 . 1 . . Impale 1 | . . . . . . . . . . 1 Melee Attacks 133 | . . 7 13 49 . 14 11 8 1 30 Impact 24 | . . . . . . . . 5 1 18 Slashing 97 | . . 7 13 49 . 14 11 3 . . Piercing 12 | . . . . . . . . . . 12 Sneak Attacks 7 | . . . . . . . 3 1 . 3 Combat Hostiles . | . . . . . . . . . . . Follow-up Attacks . | . . . . . . . . . . . Damage Inflicted 8587 | 115 216 88 1205 1061 . 671 1139 889 . 3203 Guns 2498 | 85 139 . 545 692 . 167 70 . . 800 Cannons 4343 | . . 88 633 206 . 250 827 684 . 1655 Explosions 347 | 30 77 . 27 . . . . . . 213 Melee 1399 | . . . . 163 . 254 242 205 . 535 Ramming . | . . . . . . . . . . . Kinetic 4211 | 16 50 . 458 60 . 167 897 684 . 1879 Thermal 1761 | 30 77 . 114 838 . 250 . . . 452 Explosive . | . . . . . . . . . . . Electromagnetic 1216 | 69 89 88 633 . . . . . . 337 Impact 325 | . . . . . . . . 112 . 213 Slashing 752 | . . . . 163 . 254 242 93 . . Piercing 322 | . . . . . . . . . . 322 Highest Corruption 41 | . . . 7 5 5 6 . 14 . 41 Average Corruption 11 | . . . 6 3 5 5 . 14 . 28 Corruption Purged . | . . . . . . . . . . . Corruption Blocked . | . . . . . . . . . . . Effects 82 | . . . 12 17 4 13 . . . 36 Message Errors 19 | . . . 1 6 . 4 . . . 8 Matter Fused 15 | . . . 3 2 2 . . . . 8 Heat Flow Errors 11 | . . . 1 3 . 2 . . . 5 Energy Discharges 7 | . . . 1 1 . 1 . . . 4 Parts Rejected 2 | . . . . . . 1 . . . 1 Data Loss (minor) 11 | . . . 2 3 1 3 . . . 2 Data Loss (major) 6 | . . . 1 1 . 1 . . . 3 Misfires 6 | . . . 3 1 1 1 . . . . Misdirections 2 | . . . . . . . . . . 2 Weapon Failures 3 | . . . . . . . . . . 3 Overload Shots . | . . . . . . . . . . . Overflow Damage 421 | . . . . . . . . 95 . 326 Projectiles 196 | . . . . . . . . 2 . 194 Explosions 9 | . . . . . . . . . . 9 Melee 216 | . . . . . . . . 93 . 123 Knockbacks 30 | . . . . . . . 5 11 . 14 Impact 1 | . . . . . . . . 1 . . Kinetic 26 | . . . . . . . 5 9 . 12 Secondary 3 | . . . . . . . . 1 . 2 Self-Inflicted Damage 197 | . . . 139 . . . . . . 58 Shots 4 | . . . 3 . . . . . . 1 Rammed . | . . . . . . . . . . . Targets Rammed . | . . . . . . . . . . . Kicked . | . . . . . . . . . . . Crushed . | . . . . . . . . . . . Highest Temperature 409 | 20 58 75 200 273 36 409 206 240 . 248 Average Temperature 86 | 15 27 35 34 76 23 151 88 111 . 118 Received Heat Transfer 2118 | . 63 18 648 264 9 210 270 120 . 516 Effects 1 | . . . . . . . . . . 1 Energy Bleed 1 | . . . . . . . . . . 1 Siege Activations . | . . . . . . . . . . . Robots Corrupted 3 | . . . 2 . . . . . . 1 Combat Hostiles 3 | . . . 2 . . . . . . 1 Parts Fried 9 | . . . 2 . . . . 1 . 6 Impact Corruptions 5 | . . . . . . . . 2 . 3 Robots Melted 1 | . . . . 1 . . . . . . Combat Hostiles 1 | . . . . 1 . . . . . . Parts Melted 7 | . . . . 5 . 1 . . . 1 Heat Transferred 3006 | 50 100 . 383 1707 . 370 . . . 396 Parts Sabotaged . | . . . . . . . . . . . Parts Stolen . | . . . . . . . . . . . Parts Stripped . | . . . . . . . . . . . Power Chain Reactions 6 | 1 2 . 1 . . . . . . 2 Missiles Intercepted . | . . . . . . . . . . . Alert | -11 -10 -9 -8 -7 -7 -7 -6 -5 -4 -3 ------- Run | Scr Mat Mat Mat Fac Was Fac Fac Fac Fac Res Peak Influence 355 | 10 128 167 267 168 27 355 222 132 28 152 Initial 108 | . 6 53 70 65 21 4 108 9 26 14 Average 74 | 5 45 76 102 48 17 200 114 51 26 48 Maximum Alert Level 1 | . . . 1 . . 1 1 . . . Low Security (%) 94 | 100 100 100 93 100 100 48 97 100 100 100 Level 1 5 | . . . 6 . . 51 2 . . . Level 2 . | . . . . . . . . . . . Level 3 . | . . . . . . . . . . . Level 4 . | . . . . . . . . . . . Level 5 . | . . . . . . . . . . . High Security . | . . . . . . . . . . . Max Security . | . . . . . . . . . . . Squads Dispatched 22 | . . 1 . 5 . 5 5 2 1 3 Investigation 5 | . . 1 . 1 . 1 1 . 1 . Extermination 6 | . . . . 2 . 1 . . . 3 Reinforcement 9 | . . . . 2 . 2 3 2 . . Assault 1 | . . . . . . . 1 . . . Garrison 1 | . . . . . . 1 . . . . Intercept . | . . . . . . . . . . . Searches Triggered . | . . . . . . . . . . . Construction Impeded 4 | . . . . 1 . . 1 2 . . Haulers Reinforced . | . . . . . . . . . . . Active Scanning Responses . | . . . . . . . . . . . Cargo Convoy Interrupts . | . . . . . . . . . . . Stealth | -11 -10 -9 -8 -7 -7 -7 -6 -5 -4 -3 --------- Run | Scr Mat Mat Mat Fac Was Fac Fac Fac Fac Res Distress Signals 8 | . 1 1 2 . . 2 . 2 . . Communications Jammed . | . . . . . . . . . . . Distress Signals . | . . . . . . . . . . . Times Spotted 107 | . 4 7 20 13 2 13 15 11 . 22 Peak Tracking Total 6 | . 2 5 4 6 1 4 3 5 . 5 Tactical Retreats 6 | . . . 1 . . . 1 1 . 3 Traps | -11 -10 -9 -8 -7 -7 -7 -6 -5 -4 -3 ------- Run | Scr Mat Mat Mat Fac Was Fac Fac Fac Fac Res Traps Triggered 9 | . . . 1 5 . . 3 . . . Indirectly . | . . . . . . . . . . . Trap Hack Attempts . | . . . . . . . . . . . Triggered . | . . . . . . . . . . . Disarmed . | . . . . . . . . . . . Reprogrammed . | . . . . . . . . . . . Reused . | . . . . . . . . . . . Traps Extracted . | . . . . . . . . . . . Installed . | . . . . . . . . . . . Triggered . | . . . . . . . . . . . Machines | -11 -10 -9 -8 -7 -7 -7 -6 -5 -4 -3 ---------- Run | Scr Mat Mat Mat Fac Was Fac Fac Fac Fac Res Machines Disabled 10 | . 1 . 4 . . 2 1 1 . 1 Max in Single Turn 2 | . 1 . 2 . . . 1 1 . 1 Garrison Access 1 | . . . . . . . 1 . . . Machines Sabotaged . | . . . . . . . . . . . Garrisons Compromised . | . . . . . . . . . . . Overloaded Fab Kills . | . . . . . . . . . . . Hacking | -11 -10 -9 -8 -7 -7 -7 -6 -5 -4 -3 --------- Run | Scr Mat Mat Mat Fac Was Fac Fac Fac Fac Res Machines Accessed 32 | . 1 4 6 6 . 1 10 . 2 2 Terminals 27 | . 1 4 5 6 . 1 8 . 1 1 Fabricators . | . . . . . . . . . . . Repair Stations 1 | . . . 1 . . . . . . . Recycling Units . | . . . . . . . . . . . Scanalyzers 2 | . . . . . . . 1 . . 1 Garrison Access 2 | . . . . . . . 1 . 1 . Total Hacks 82 | . 3 15 21 14 . 2 20 . 4 3 Successful 33 | . 2 4 14 7 . . 4 . . 2 Failed 49 | . 1 11 7 7 . 2 16 . 4 1 Catastrophic 9 | . . 1 1 1 . . 5 . 1 . Database Lockouts . | . . . . . . . . . . . Manual 60 | . 3 14 13 12 . 2 13 . 2 1 Terminals 69 | . 3 15 15 14 . 2 17 . 2 1 Fabricators . | . . . . . . . . . . . Repair Stations 6 | . . . 6 . . . . . . . Recycling Units . | . . . . . . . . . . . Scanalyzers 3 | . . . . . . . 1 . . 2 Garrison Access 4 | . . . . . . . 2 . 2 . Terminal Hacks 18 | . 2 3 6 4 . . 3 . . . Terminal Index 6 | . 1 2 1 1 . . 1 . . . Alert Level 1 | . . . . . . . 1 . . . Unreport Threat 5 | . 1 . 3 1 . . . . . . Locate Traps 1 | . . . . 1 . . . . . . Hauler Manifests 1 | . . . 1 . . . . . . . Zone Layout 4 | . . 1 1 1 . . 1 . . . Fabricator Hacks . | . . . . . . . . . . . Repair Station Hacks 6 | . . . 6 . . . . . . . Scan Component 3 | . . . 3 . . . . . . . Repair 3 | . . . 3 . . . . . . . Recycling Unit Hacks . | . . . . . . . . . . . Scanalyzer 2 | . . . . . . . . . . 2 Insert Component 1 | . . . . . . . . . . 1 Analyze 1 | . . . . . . . . . . 1 Garrison Access Hacks . | . . . . . . . . . . . Unauthorized Hacks 7 | . . 1 2 3 . . 1 . . . Terminals 7 | . . 1 2 3 . . 1 . . . Track 1 | . . . . 1 . . . . . . Botnet 6 | . . 1 2 2 . . 1 . . . Fabricators . | . . . . . . . . . . . Repair Stations . | . . . . . . . . . . . Recycling Units . | . . . . . . . . . . . Scanalyzers . | . . . . . . . . . . . Garrison Access . | . . . . . . . . . . . Data Cores Recovered 1 | . . . 1 . . . . . . . Used 1 | . . . 1 . . . . . . . Hacking Detections 30 | . 1 4 4 6 . 1 10 . 2 2 Full Trace Events 3 | . . 1 . 1 . . . . 1 . Feedback Events . | . . . . . . . . . . . Feedback Blocked . | . . . . . . . . . . . Robot Schematics Acquired . | . . . . . . . . . . . Robots Built . | . . . . . . . . . . . Authchips . | . . . . . . . . . . . Time . | . . . . . . . . . . . Total Robot Build Rating . | . . . . . . . . . . . Part Schematics Acquired 1 | . . . . . . . . . . 1 Parts Built . | . . . . . . . . . . . Authchips . | . . . . . . . . . . . Time . | . . . . . . . . . . . Total Part Build Rating . | . . . . . . . . . . . Parts Repaired 3 | . . . 3 . . . . . . . Time 78 | . . . 78 . . . . . . . Parts Recycled . | . . . . . . . . . . . Recycled Matter . | . . . . . . . . . . . Retrieved Matter . | . . . . . . . . . . . Retrieved Components . | . . . . . . . . . . . Parts Scanalyzed 1 | . . . . . . . . . . 1 Part Schematics Acquired 1 | . . . . . . . . . . 1 Parts Damaged . | . . . . . . . . . . . Bothacking | -11 -10 -9 -8 -7 -7 -7 -6 -5 -4 -3 ------------ Run | Scr Mat Mat Mat Fac Was Fac Fac Fac Fac Res Used RIF Installer . | . . . . . . . . . . . Robots Hacked . | . . . . . . . . . . . Non-combat . | . . . . . . . . . . . Combat . | . . . . . . . . . . . Robot Hacks Applied . | . . . . . . . . . . . Relay Couplers Released 2 | . . . . . . . 2 . . . Machine Destruction 2 | . . . . . . . 2 . . . Fabnet Peak Effective % . | . . . . . . . . . . . Robots Rewired . | . . . . . . . . . . . Allies Hacked . | . . . . . . . . . . . Hacks Repelled . | . . . . . . . . . . . Allies | -11 -10 -9 -8 -7 -7 -7 -6 -5 -4 -3 -------- Run | Scr Mat Mat Mat Fac Was Fac Fac Fac Fac Res Total Allies 23 | . . . . . 20 . 3 . . . Largest Group 20 | . . . . . 20 19 3 1 . . Highest-Rated Group 502 | . . . . . 502 488 93 31 . . Highest-Rated Ally 35 | . . . . . 35 35 31 31 . . Total Orders . | . . . . . . . . . . . Ally Attacks 150 | . . . . . 55 71 20 4 . . Total Damage 2592 | . . . . . 929 1359 242 62 . . Kills 14 | . . . . . 2 11 1 . . . Allies Corrupted . | . . . . . . . . . . . Allies Melted . | . . . . . . . . . . . Intel | -11 -10 -9 -8 -7 -7 -7 -6 -5 -4 -3 ------- Run | Scr Mat Mat Mat Fac Was Fac Fac Fac Fac Res Robot Analysis Total . | . . . . . . . . . . . Derelict Logs Recovered . | . . . . . . . . . . . Drone Launches . | . . . . . . . . . . . Drone Recoveries . | . . . . . . . . . . . Exploration | -11 -10 -9 -8 -7 -7 -7 -6 -5 -4 -3 ------------- Run | Scr Mat Mat Mat Fac Was Fac Fac Fac Fac Res Turns Passed 5988 | 71 219 232 613 1471 263 535 814 458 269 1043 Spaces Moved 3431 | 42 144 155 355 933 205 352 517 201 152 375 Core 2 | . . . . . . . . . . 2 Treads 8 | . . . . . . . . . . 8 Legs 2959 | 42 144 155 178 933 205 352 352 201 150 247 Wheels 412 | . . . 177 . . . 165 . 2 68 Hover 50 | . . . . . . . . . . 50 Flight . | . . . . . . . . . . . Fastest Speed 90 | 120 120 120 95 120 124 124 105 123 112 90 Average Speed 131 | 120 120 120 114 121 124 124 121 164 173 170 Slowest Speed 1300 | 120 120 120 260 124 124 124 260 193 186 1300 Overloaded Moves . | . . . . . . . . . . . Propulsion Burnouts . | . . . . . . . . . . . Robots Hopped . | . . . . . . . . . . . Cave-ins Triggered . | . . . . . . . . . . . Exploration Rate (%) 24 | 4 31 22 42 24 89 19 17 6 5 10 Regions Visited 10 Branch Regions . Pre-discovered Areas . | . . . . . . . . . . . Known Exits Taken 6 | . . 1 1 . . 1 1 1 1 . Unknown Exits Taken 2 | 1 1 . . . . . . . . . Scrap Searched . | . . . . . . . . . . . Spaces Dug 137 | . . 7 53 43 . 10 7 2 1 14 Terrain Destroyed 201 | 3 7 7 56 43 . 10 19 12 1 43 Melee 91 | . . 7 11 43 . 6 7 2 1 14 Projectile 36 | . . . 1 . . 4 12 10 . 9 AOE 74 | 3 7 . 44 . . . . . . 20 Terrain Rammed . | . . . . . . . . . . . Walls Destroyed . | . . . . . . . . . . . Machines Disabled . | . . . . . . . . . . . Actions | -11 -10 -9 -8 -7 -7 -7 -6 -5 -4 -3 --------- Run | Scr Mat Mat Mat Fac Was Fac Fac Fac Fac Res Total 4223 | 50 166 186 470 1141 214 399 614 258 154 571 Wait 163 | . 5 11 15 76 4 . 15 3 1 33 Move 3422 | 41 143 154 354 933 204 351 516 200 151 375 Hop . | . . . . . . . . . . . Pick Up 67 | 2 2 4 7 16 4 1 11 8 . 12 Fast Attach 38 | . . 1 10 3 . 1 4 1 1 17 Attach 49 | . . 3 5 6 1 1 11 8 . 14 Detach . | . . . . . . . . . . . Swap 21 | . . 1 7 6 . . 6 1 . . Drop 21 | . 2 1 8 7 1 1 . 1 . . Fire 304 | 7 14 4 51 45 . 30 35 28 . 90 Melee 133 | . . 7 13 49 . 14 11 8 1 30 Ram . | . . . . . . . . . . . Kick . | . . . . . . . . . . . Crush . | . . . . . . . . . . . Escape Stasis 5 | . . . . . . . 5 . . . Rewire . | . . . . . . . . . . . Trap . | . . . . . . . . . . . Miscellaneous . | . . . . . . . . . . . Route ------- -11/Scrapyard -10/Materials -9/Materials -8/Materials (discovered 2 exits: *Fac / *Sto) -7/Factory -7/Waste -7/Factory -6/Factory (discovered 3 exits: *Fac x2 / *Low) -5/Factory -4/Factory -3/Research History --------- Turn | Location | Event 10 | -11/Scrapyard | Discovered new exit (range 3) 72 | -11/Scrapyard | Entered Materials 273 | -10/Materials | Discovered new exit (range 16) 291 | -10/Materials | Entered another Materials area 291 | -9/Materials | Evolved 2 slots: Propulsion x1, Utility x1 313 | -9/Materials | Build established: Mutant 512 | -9/Materials | Discovered new exit (range 10) 522 | -9/Materials | Identified exit to Materials 523 | -9/Materials | Entered another Materials area 523 | -8/Materials | Evolved 2 slots: Propulsion x1, Utility x1 681 | -8/Materials | Repaired Ion Engine 681 | -8/Materials | Repaired Aluminum Leg 707 | -8/Materials | Repaired Aluminum Leg 956 | -8/Materials | Discovered new exit (range 4) 960 | -8/Materials | Identified exit to Storage 1083 | -8/Materials | Lost 4 parts (1p1n1u1w) 1114 | -8/Materials | Discovered new exit (range 9) 1124 | -8/Materials | Identified exit to Factory 1136 | -8/Materials | Entered Factory 1136 | -7/Factory | Evolved 2 slots: Propulsion x1, Utility x1 1370 | -7/Factory | Build established: Scavenger-Mutant 2557 | -7/Factory | Build established: Mutant 2607 | -7/Factory | Sucked down chute 2607 | -7/Factory | Entered Waste 2608 | -7/Waste | Joined by Warlord forces that had cleared the area 2790 | -7/Waste | A Compactor rumbled back to life 2790 | -7/Waste | Spotted C-40 Crusher 2795 | -7/Waste | Allies destroyed C-40 Crusher 2800 | -7/Waste | A Compactor rumbled back to life 2800 | -7/Waste | Spotted C-40 Crusher 2805 | -7/Waste | Allies destroyed C-40 Crusher 2845 | -7/Waste | Discovered new exit (range 16) 2862 | -7/Waste | Identified exit to Factory 2870 | -7/Waste | Entered Factory 2870 | -7/Factory | Accompanied by 19 allies 3046 | -7/Factory | Build established: Scavenger-Mutant 3302 | -7/Factory | Destroyed 8 combat bots 3315 | -7/Factory | Garrison activated, responded to threat 3381 | -7/Factory | Discovered new exit (range 6) 3393 | -7/Factory | Identified exit to Factory 3405 | -7/Factory | Entered another Factory area 3405 | -6/Factory | Accompanied by 2 allies 3405 | -6/Factory | Evolved 2 slots: Propulsion x1, Utility x1 3905 | -6/Factory | Build established: Mutant 4037 | -6/Factory | Lost 8 parts (1p5n2u) 4056 | -6/Factory | Discovered new exit (range 8) 4073 | -6/Factory | Identified exit to Lower Caves 4145 | -6/Factory | Allied Derelicts emerged from ambush trap array 4212 | -6/Factory | Discovered new exit (range 6) 4217 | -6/Factory | Discovered new exit (range 8) 4218 | -6/Factory | Identified exit to Factory 4219 | -6/Factory | Entered another Factory area 4219 | -5/Factory | Accompanied by 1 ally 4219 | -5/Factory | Evolved 2 slots: Power x1, Weapon x1 4316 | -5/Factory | Build established: Scavenger-Mutant 4530 | -5/Factory | Lost 3 parts (2n1u) 4588 | -5/Factory | Lost 3 parts (2p1n) 4659 | -5/Factory | Discovered new exit (range 8) 4674 | -5/Factory | Identified exit to Factory 4677 | -5/Factory | System corruption reached 10% 4677 | -5/Factory | Entered another Factory area 4677 | -4/Factory | Evolved 2 slots: Utility x2 4928 | -4/Factory | Discovered new exit (range 16) 4944 | -4/Factory | Identified exit to Research 4946 | -4/Factory | Entered Research 4946 | -3/Research | Evolved 2 slots: Propulsion x1, Utility x1 5235 | -3/Research | Found Enh. Force Lance 5342 | -3/Research | System corruption reached 10% 5375 | -3/Research | Lost 6 parts (1p4n1u) 5542 | -3/Research | System corruption reached 30% 5558 | -3/Research | Core integrity fell below 50% 5617 | -3/Research | Lost 21 parts (2p9n5u5w) 5951 | -3/Research | Core integrity fell below 20% 5989 | -3/Research | Destroyed by G-67 Veteran with Plasma Rifle Last Messages --------------- 05946_ System corrupted: Component data lost. 05946_ ALERT: Rogue bot located, Programmers report to Research Zone 3L. 05950_ Hvy. Machine Gun destroyed. 05953_ Imp. Antigrav System destroyed. 05954_ Acquired Tesla Rifle. 05955_ G-73 Enforcer destroyed. 05959_ Acquired Flexi-carbon Leg. 05961_ System corrupted: Mic. Antimatter Reactor rejected. 05966_ Imp. Hacking Suite destroyed. 05969_ G-67 Veteran IFF system glitched. 05973_ Acquired 57 matter. 05977_ System corrupted: Substantial component data lost. 05982_ Tesla Rifle destroyed. 05982_ Critical hit (Burn: +50). 05983_ Flexi-carbon Leg destroyed. 05983_ G-67 Veteran suffers critical hit (Impale). 05983_ Destroyed Flexi-carbon Leg. 05987_ Acquired 9 matter. 05987_ Imp. VSS Leg destroyed. 05988_ G-67 Veteran destroyed. Map ----- +----------------------------------------------------+ | | | | | | | | | | | | | | | | | | | | | | | | | | | | | | | | | | | | | | | | | | | ?????##;########?????????????????? | | ?????# #?????????????????? | | ?????# ! *] #?????????????????? | | ?????# !%!![ #?????????????????? | | ?????# %=@ *!! #?????????????????? | | ???######[+#########?????????????? | | ???# =g%! ????????? | | ???# %%=#######???????????????? | | ???# =#?????????????????????? | | ???# #?????????????????????? | | ???# ##### #?????????????????????? | | ???# #???# #?????????????????????? | | ???# #???# #?????????????????????? | | ???# #???#+#?????????????????????? | | ???# #???????????????????????????? | | ???# #???????????????????????????? | | ???# #???????????????????????????? | | ???# #???????????????????????????? | | ???# #???????????????????????????? | | ???# #???????????????????????????? | | ???# #???????????????????????????? | | ???# #???????????????????????????? | | ???# #???????????????????????????? | | ???# ########????????????????????? | | ???# ?????????????? | | ???# ##### ##????????????????????? | | ???# #???????????????????????????? | | ??## ##??????????????????????????? | | ??# #??????????????????????????? | +----------------------------------------------------+ Best States ------------- Heat Dissipation 46 Energy Generation 46 Energy Capacity 530 Matter Stores 300 Matter Capacity 300 Sight Range 16 Terrain Scan Range 14 Terrain Scan Density 10 Power Amplification 30 Base Temperature (-) 100 Armor Coverage 225 Resistance: EM 25 Power Shielding 33 Weapon Shielding 66 Evasion (%) 55 Melee Accuracy 5 Recoil Reduction 2 Offensive Hacking 22 Item Schematics ----------------- Carbon-fiber Leg | -3/Research | Scanalyzed Robot Schematics ------------------ None Fabricated ------------ Nothing Alien Tech Used ----------------- None Achievements -------------- None Challenges ------------ None Game ------ Seed MakeshiftWeightMapper Manual? 0 Play Time 00:54:03 Cumulative 119.7 hours Start 2022.03.19 @ 15:12:35 End 2022.03.19 @ 16:04:26 Sessions 1 Manual Loads 0 Difficulty Rogue Special Mode None Game No. 238 Rogue 238 Adventurer 0 Explorer 0 Win Type - Total 0 Types 0/0/0/0/0/0/0/0/0 Lore% 33 Gallery% 57 Achievement% 36 Wizard Run 0 Options --------- ASCII 0 Keyboard 1 Movement Vi Keybinds 0 Fullscreen 1 Font 20/SmallcapsGlow Map View 82x60 Tactical HUD 1 Map Filters NONE Filters NONE Steam 1 RUN: 29efcf1c-2049-45c7-93a3-07217592a1b1